[Event "*** Titled Tuesday 3|2 Blitz (Early)"]
[Site "Chess.com"]
[Date "2016.11.01"]
[Round "4"]
[White "Jahonas"]
[Black "filali-oujda"]
[Result "1/2-1/2"]
[WhiteElo "2168"]
[BlackElo "2262"]
[TimeControl "180+2"]
[EndTime "11:52:43 PDT"]
[Termination "Game drawn by repetition"]

1. d4 {[%clk 0:02:55.3]} 1... c6 {[%clk 0:02:53.2]} 2. Nf3 {[%clk 0:02:55.9]}
2... d5 {[%clk 0:02:52.6]} 3. c4 {[%clk 0:02:57.1]} 3... Nf6 {[%clk 0:02:53]} 4.
Nc3 {[%clk 0:02:57.9]} 4... e6 {[%clk 0:02:52.9]} 5. cxd5 {[%clk 0:02:59.2]}
5... exd5 {[%clk 0:02:53.9]} 6. Bg5 {[%clk 0:03:00.1]} 6... Bb4 {[%clk
0:02:51.4]} 7. e3 {[%clk 0:03:00.8]} 7... O-O {[%clk 0:02:34.5]} 8. Nd2 {[%clk
0:02:57.8]} 8... Bf5 {[%clk 0:02:33.1]} 9. Be2 {[%clk 0:02:57.7]} 9... Nbd7
{[%clk 0:02:33.5]} 10. O-O {[%clk 0:02:58.2]} 10... h6 {[%clk 0:02:33.6]} 11.
Bh4 {[%clk 0:02:57.7]} 11... Re8 {[%clk 0:02:34.8]} 12. Rc1 {[%clk 0:02:54.9]}
12... a6 {[%clk 0:02:14.6]} 13. a3 {[%clk 0:02:55.1]} 13... Bd6 {[%clk
0:02:15.2]} 14. Bg3 {[%clk 0:02:55.4]} 14... Bxg3 {[%clk 0:02:15.4]} 15. hxg3
{[%clk 0:02:53.3]} 15... Rc8 {[%clk 0:02:09.3]} 16. b4 {[%clk 0:02:53.9]} 16...
a5 {[%clk 0:02:06]} 17. Na4 {[%clk 0:02:51.9]} 17... Qe7 {[%clk 0:01:41.1]} 18.
Nc5 {[%clk 0:02:52.1]} 18... axb4 {[%clk 0:01:36.4]} 19. axb4 {[%clk 0:02:52.6]}
19... b6 {[%clk 0:01:37.6]} 20. Nxd7 {[%clk 0:02:50.5]} 20... Bxd7 {[%clk
0:01:38.2]} 21. Qb3 {[%clk 0:02:47.4]} 21... c5 {[%clk 0:01:28.5]} 22. bxc5
{[%clk 0:02:45.3]} 22... bxc5 {[%clk 0:01:20.8]} 23. dxc5 {[%clk 0:02:40.2]}
23... Rxc5 {[%clk 0:01:22.7]} 24. Rxc5 {[%clk 0:02:41.1]} 24... Qxc5 {[%clk
0:01:23.2]} 25. Qb2 {[%clk 0:02:38.5]} 25... Rc8 {[%clk 0:01:22.6]} 26. Nf3
{[%clk 0:02:35.6]} 26... Ne4 {[%clk 0:01:21.8]} 27. Qd4 {[%clk 0:02:33.4]} 27...
Qxd4 {[%clk 0:01:20.2]} 28. Nxd4 {[%clk 0:02:34]} 28... Rb8 {[%clk 0:01:18.8]}
29. Bf3 {[%clk 0:02:35.1]} 29... Rb2 {[%clk 0:00:58.7]} 30. Bxe4 {[%clk
0:02:34.2]} 30... dxe4 {[%clk 0:00:57.4]} 31. Ra1 {[%clk 0:02:32]} 31... Bg4
{[%clk 0:00:51.8]} 32. Ra8+ {[%clk 0:02:28.1]} 32... Kh7 {[%clk 0:00:51.4]} 33.
Re8 {[%clk 0:02:28.3]} 33... Rb1+ {[%clk 0:00:51.1]} 34. Kh2 {[%clk 0:02:28.9]}
34... Rf1 {[%clk 0:00:33.3]} 35. Rxe4 {[%clk 0:02:27.1]} 35... f5 {[%clk
0:00:31.5]} 36. Re7 {[%clk 0:02:16.2]} 36... Rxf2 {[%clk 0:00:31]} 37. Kg1
{[%clk 0:02:02.5]} 37... Ra2 {[%clk 0:00:27.4]} 38. Ne6 {[%clk 0:02:02.2]} 38...
Ra3 {[%clk 0:00:24.1]} 39. Nxg7 {[%clk 0:01:57.1]} 39... Kg6 {[%clk 0:00:21.3]}
40. Ne8 {[%clk 0:01:51.9]} 40... Ra2 {[%clk 0:00:20.5]} 41. e4 {[%clk
0:01:45.2]} 41... fxe4 {[%clk 0:00:19]} 42. Rxe4 {[%clk 0:01:45.5]} 42... Bf5
{[%clk 0:00:19.4]} 43. Rf4 {[%clk 0:01:43.1]} 43... h5 {[%clk 0:00:19.9]} 44.
Nd6 {[%clk 0:01:43.7]} 44... Bg4 {[%clk 0:00:21]} 45. Ne4 {[%clk 0:01:43.2]}
45... Ra1+ {[%clk 0:00:22.3]} 46. Kh2 {[%clk 0:01:44]} 46... Ra6 {[%clk
0:00:23]} 47. Nf2 {[%clk 0:01:40.6]} 47... Be2 {[%clk 0:00:23.9]} 48. Re4 {[%clk
0:01:37]} 48... Ra2 {[%clk 0:00:25.3]} 49. Nh3 {[%clk 0:01:34]} 49... Bf3 {[%clk
0:00:25.3]} 50. Nf4+ {[%clk 0:01:35.2]} 50... Kf7 {[%clk 0:00:26.2]} 51. Re5
{[%clk 0:01:34.1]} 51... Kf6 {[%clk 0:00:20.1]} 52. Rc5 {[%clk 0:01:34.2]} 52...
Bg4 {[%clk 0:00:20.2]} 53. Nxh5+ {[%clk 0:01:34.4]} 53... Bxh5 {[%clk
0:00:20.3]} 54. Rxh5 {[%clk 0:01:35.4]} 54... Kg6 {[%clk 0:00:21.9]} 55. Rb5
{[%clk 0:01:36]} 55... Ra8 {[%clk 0:00:23.4]} 56. g4 {[%clk 0:01:35.5]} 56...
Ra3 {[%clk 0:00:24.2]} 57. g3 {[%clk 0:01:34.5]} 57... Ra2+ {[%clk 0:00:24.6]}
58. Kh3 {[%clk 0:01:35.7]} 58... Ra1 {[%clk 0:00:26.5]} 59. g5 {[%clk
0:01:34.6]} 59... Ra6 {[%clk 0:00:28]} 60. Kh4 {[%clk 0:01:33.8]} 60... Rd6
{[%clk 0:00:29.6]} 61. g4 {[%clk 0:01:30]} 61... Ra6 {[%clk 0:00:30.6]} 62. Rf5
{[%clk 0:01:30.8]} 62... Ra1 {[%clk 0:00:31]} 63. Rf6+ {[%clk 0:01:31.8]} 63...
Kg7 {[%clk 0:00:32.5]} 64. Rf3 {[%clk 0:01:21.6]} 64... Rh1+ {[%clk 0:00:32.5]}
65. Rh3 {[%clk 0:01:22.8]} 65... Ra1 {[%clk 0:00:32.9]} 66. Kh5 {[%clk
0:01:23.5]} 66... Ra2 {[%clk 0:00:31.9]} 67. g6 {[%clk 0:01:23.7]} 67... Ra5+
{[%clk 0:00:33]} 68. g5 {[%clk 0:01:23.4]} 68... Ra4 {[%clk 0:00:34.2]} 69. Rb3
{[%clk 0:01:23.5]} 69... Ra1 {[%clk 0:00:33]} 70. Rb7+ {[%clk 0:01:24.2]} 70...
Kg8 {[%clk 0:00:34.5]} 71. Rb4 {[%clk 0:01:21.1]} 71... Kg7 {[%clk 0:00:33.8]}
72. Rb7+ {[%clk 0:01:14.5]} 72... Kg8 {[%clk 0:00:34.7]} 73. g7 {[%clk
0:01:11.5]} 73... Ra6 {[%clk 0:00:30]} 74. Rc7 {[%clk 0:00:43.1]} 74... Rb6
{[%clk 0:00:20.1]} 75. Rc2 {[%clk 0:00:35.8]} 75... Kxg7 {[%clk 0:00:19.6]} 76.
Rc7+ {[%clk 0:00:32.2]} 76... Kg8 {[%clk 0:00:20.4]} 77. g6 {[%clk 0:00:33.4]}
77... Rb1 {[%clk 0:00:19.6]} 78. Kh6 {[%clk 0:00:34.3]} 78... Rh1+ {[%clk
0:00:20.3]} 79. Kg5 {[%clk 0:00:35.7]} 79... Rg1+ {[%clk 0:00:21.7]} 80. Kf6
{[%clk 0:00:36.9]} 80... Rf1+ {[%clk 0:00:23.2]} 81. Kg5 {[%clk 0:00:38.2]}
81... Rg1+ {[%clk 0:00:24.6]} 82. Kh6 {[%clk 0:00:39.6]} 82... Rh1+ {[%clk
0:00:26.1]} 83. Kg5 {[%clk 0:00:40.9]} 83... Rg1+ {[%clk 0:00:27.6]} 84. Kf6
{[%clk 0:00:42.4]} 84... Rf1+ {[%clk 0:00:28.9]} 85. Kg5 {[%clk 0:00:43.7]}
85... Rg1+ {[%clk 0:00:30.4]} 86. Kh6 {[%clk 0:00:45.1]} 86... Rh1+ {[%clk
0:00:31.8]} 1/2-1/2

[Event "*** Titled Tuesday 3|2 Blitz (Early)"]
[Site "Chess.com"]
[Date "2016.11.01"]
[Round "5"]
[White "ChessWarrior7197"]
[Black "Usurpov"]
[Result "1-0"]
[WhiteElo "2495"]
[BlackElo "2272"]
[TimeControl "180+2"]
[EndTime "11:59:57 PDT"]
[Termination "ChessWarrior7197 won by resignation"]

1. e4 {[%clk 0:03:01.9]} 1... c5 {[%clk 0:02:58.6]} 2. Nf3 {[%clk 0:03:02.6]}
2... Nc6 {[%clk 0:02:59]} 3. Bb5 {[%clk 0:03:02.7]} 3... e6 {[%clk 0:02:59.7]}
4. Bxc6 {[%clk 0:03:03.2]} 4... bxc6 {[%clk 0:03:01.6]} 5. O-O {[%clk
0:03:03.5]} 5... Ne7 {[%clk 0:03:01.6]} 6. c3 {[%clk 0:03:01.7]} 6... Ng6 {[%clk
0:02:54.6]} 7. d4 {[%clk 0:03:02.4]} 7... cxd4 {[%clk 0:02:46.2]} 8. cxd4 {[%clk
0:03:04.3]} 8... d5 {[%clk 0:02:47.1]} 9. Nc3 {[%clk 0:03:04]} 9... Be7 {[%clk
0:02:45.1]} 10. b3 {[%clk 0:03:03.8]} 10... O-O {[%clk 0:02:37.2]} 11. Bb2
{[%clk 0:03:04.3]} 11... a5 {[%clk 0:02:24.4]} 12. Rc1 {[%clk 0:03:03.8]} 12...
dxe4 {[%clk 0:02:19.7]} 13. Nxe4 {[%clk 0:03:04.5]} 13... a4 {[%clk 0:02:20.6]}
14. Re1 {[%clk 0:03:01.7]} 14... axb3 {[%clk 0:02:19.5]} 15. axb3 {[%clk
0:03:03.6]} 15... Ra2 {[%clk 0:02:18.1]} 16. Rc2 {[%clk 0:03:00.5]} 16... Nf4
{[%clk 0:02:01.1]} 17. Bc1 {[%clk 0:02:58.9]} 17... Rxc2 {[%clk 0:01:57.2]} 18.
Qxc2 {[%clk 0:03:00.8]} 18... Nd5 {[%clk 0:01:57]} 19. Qxc6 {[%clk 0:03:01.7]}
19... Qb6 {[%clk 0:01:55.4]} 20. Qxb6 {[%clk 0:03:01.5]} 20... Nxb6 {[%clk
0:01:57.3]} 21. Ne5 {[%clk 0:03:02.6]} 21... Bb7 {[%clk 0:01:54.1]} 22. Nc5
{[%clk 0:02:59.1]} 22... Bd5 {[%clk 0:01:51.2]} 23. b4 {[%clk 0:03:00.4]} 23...
Rb8 {[%clk 0:01:40.7]} 24. Bd2 {[%clk 0:03:00.8]} 24... f6 {[%clk 0:01:36.3]}
25. Ned7 {[%clk 0:02:56.9]} 25... Nxd7 {[%clk 0:01:33.8]} 26. Nxd7 {[%clk
0:02:58.8]} 26... Rb7 {[%clk 0:01:31]} 27. Nc5 {[%clk 0:03:00.7]} 27... Kf7
{[%clk 0:01:31.3]} 28. Nxb7 {[%clk 0:03:01.3]} 1-0

[Event "*** Titled Tuesday 3|2 Blitz (Early)"]
[Site "Chess.com"]
[Date "2016.11.01"]
[Round "5"]
[White "howitzer14"]
[Black "FairChess_on_YouTube"]
[Result "1/2-1/2"]
[WhiteElo "2765"]
[BlackElo "2735"]
[TimeControl "180+2"]
[EndTime "12:00:04 PDT"]
[Termination "Game drawn by agreement"]

1. e4 {[%clk 0:03:02]} 1... c5 {[%clk 0:03:00.2]} 2. c3 {[%clk 0:03:02.9]} 2...
Nf6 {[%clk 0:02:56.9]} 3. e5 {[%clk 0:03:03.5]} 3... Nd5 {[%clk 0:02:58.5]} 4.
Nf3 {[%clk 0:03:05.1]} 4... Nc6 {[%clk 0:02:58.2]} 5. Bc4 {[%clk 0:03:06.2]}
5... Nb6 {[%clk 0:02:56.1]} 6. Bb3 {[%clk 0:03:07.3]} 6... e6 {[%clk 0:02:54.9]}
7. O-O {[%clk 0:03:05.4]} 7... d5 {[%clk 0:02:55.8]} 8. exd6 {[%clk 0:03:05.5]}
8... Bxd6 {[%clk 0:02:55.5]} 9. d4 {[%clk 0:03:07]} 9... O-O {[%clk 0:02:55.2]}
10. Re1 {[%clk 0:03:00]} 10... cxd4 {[%clk 0:02:53.4]} 11. cxd4 {[%clk
0:03:00.5]} 11... Bd7 {[%clk 0:02:47.7]} 12. Nc3 {[%clk 0:03:02.4]} 12... Ne7
{[%clk 0:02:46]} 13. Ne5 {[%clk 0:02:55.3]} 13... Bxe5 {[%clk 0:02:31.6]} 14.
dxe5 {[%clk 0:02:41.5]} 14... Bc6 {[%clk 0:02:32.6]} 15. Qh5 {[%clk 0:02:42.9]}
15... Qd3 {[%clk 0:02:27]} 16. Bg5 {[%clk 0:02:28]} 16... Qg6 {[%clk 0:02:08.7]}
17. Qxg6 {[%clk 0:02:18.7]} 17... Nxg6 {[%clk 0:02:10.6]} 18. Rad1 {[%clk
0:02:19.3]} 18... h6 {[%clk 0:02:11.3]} 19. Be3 {[%clk 0:02:17.8]} 19... Rfd8
{[%clk 0:02:11.4]} 20. Bxb6 {[%clk 0:02:14.1]} 20... Rxd1 {[%clk 0:02:04.2]} 21.
Bxd1 {[%clk 0:02:07.7]} 21... axb6 {[%clk 0:02:05.2]} 22. g3 {[%clk 0:02:09.5]}
22... Ne7 {[%clk 0:01:58.9]} 23. f4 {[%clk 0:02:06.5]} 1/2-1/2

[Event "*** Titled Tuesday 3|2 Blitz (Early)"]
[Site "Chess.com"]
[Date "2016.11.01"]
[Round "5"]
[White "Rating-Schmating"]
[Black "avto24"]
[Result "0-1"]
[WhiteElo "2256"]
[BlackElo "2324"]
[TimeControl "180+2"]
[EndTime "12:00:12 PDT"]
[Termination "avto24 won by checkmate"]

1. e4 {[%clk 0:03:01.9]} 1... e6 {[%clk 0:02:58.3]} 2. d4 {[%clk 0:03:02]} 2...
d5 {[%clk 0:02:59.4]} 3. Nd2 {[%clk 0:03:02.4]} 3... c5 {[%clk 0:02:59.3]} 4.
exd5 {[%clk 0:03:02.9]} 4... Qxd5 {[%clk 0:03:00.4]} 5. Ngf3 {[%clk 0:03:03.2]}
5... cxd4 {[%clk 0:02:58.2]} 6. Bc4 {[%clk 0:03:04]} 6... Qd6 {[%clk 0:02:59.1]}
7. Nb3 {[%clk 0:03:04.3]} 7... Nc6 {[%clk 0:02:58.8]} 8. O-O {[%clk 0:03:04.8]}
8... Nf6 {[%clk 0:02:58.4]} 9. Nbxd4 {[%clk 0:03:03.9]} 9... Nxd4 {[%clk
0:02:59.6]} 10. Qxd4 {[%clk 0:03:04.6]} 10... Qxd4 {[%clk 0:02:56.4]} 11. Nxd4
{[%clk 0:03:06.5]} 11... a6 {[%clk 0:02:57.8]} 12. Bg5 {[%clk 0:03:05.7]} 12...
Ne4 {[%clk 0:02:55.2]} 13. Be3 {[%clk 0:03:04.5]} 13... b5 {[%clk 0:02:55.2]}
14. Bd3 {[%clk 0:03:03]} 14... Nc5 {[%clk 0:02:54.9]} 15. Be2 {[%clk 0:03:04.2]}
15... Bb7 {[%clk 0:02:55.5]} 16. Rad1 {[%clk 0:03:00.9]} 16... Be7 {[%clk
0:02:54]} 17. c4 {[%clk 0:02:59.7]} 17... b4 {[%clk 0:02:53.8]} 18. b3 {[%clk
0:02:57]} 18... g6 {[%clk 0:02:46.7]} 19. Bf3 {[%clk 0:02:55.1]} 19... O-O-O
{[%clk 0:02:33.1]} 20. Bxb7+ {[%clk 0:02:52.2]} 20... Kxb7 {[%clk 0:02:32.6]}
21. Nf3 {[%clk 0:02:49]} 21... f6 {[%clk 0:02:25.9]} 22. Bd4 {[%clk 0:02:37.6]}
22... e5 {[%clk 0:02:26.3]} 23. Be3 {[%clk 0:02:37.8]} 23... Ne4 {[%clk
0:02:26.3]} 24. Bd2 {[%clk 0:02:24.6]} 24... Bc5 {[%clk 0:02:20.2]} 25. g3
{[%clk 0:02:20.1]} 25... Rd3 {[%clk 0:02:19.7]} 26. Kg2 {[%clk 0:02:18]} 26...
Rhd8 {[%clk 0:02:19.9]} 27. h4 {[%clk 0:02:11.7]} 27... Nxd2 {[%clk 0:02:16.1]}
28. Nxd2 {[%clk 0:02:03.7]} 28... Rxd2 {[%clk 0:02:16.6]} 29. Rde1 {[%clk
0:02:05.4]} 29... Rxa2 {[%clk 0:02:16.5]} 30. g4 {[%clk 0:02:07.1]} 30... Rdd2
{[%clk 0:02:16.8]} 31. Rb1 {[%clk 0:02:09]} 31... Rxf2+ {[%clk 0:02:17.4]} 32.
Kg3 {[%clk 0:02:10.9]} 32... Rg2+ {[%clk 0:02:15.6]} 33. Kh3 {[%clk 0:02:12.1]}
33... Be3 {[%clk 0:02:12.8]} 34. Rf5 {[%clk 0:02:13.1]} 34... gxf5 {[%clk
0:02:12.7]} 35. Rf1 {[%clk 0:02:14.1]} 35... fxg4# {[%clk 0:02:13.5]} 0-1

[Event "*** Titled Tuesday 3|2 Blitz (Early)"]
[Site "Chess.com"]
[Date "2016.11.01"]
[Round "5"]
[White "PowerThinking2650"]
[Black "RitvarsReimanis"]
[Result "0-1"]
[WhiteElo "2178"]
[BlackElo "2394"]
[TimeControl "180+2"]
[EndTime "12:00:28 PDT"]
[Termination "RitvarsReimanis won by resignation"]

1. e4 {[%clk 0:03:01.9]} 1... c5 {[%clk 0:02:57.2]} 2. Nf3 {[%clk 0:03:02.4]}
2... Nc6 {[%clk 0:02:58.3]} 3. d4 {[%clk 0:03:03.8]} 3... cxd4 {[%clk
0:02:59.4]} 4. Nxd4 {[%clk 0:03:05.4]} 4... Nf6 {[%clk 0:03:00.7]} 5. Nc3 {[%clk
0:03:06]} 5... d6 {[%clk 0:03:02]} 6. Bc4 {[%clk 0:03:06.3]} 6... Qb6 {[%clk
0:03:02.1]} 7. Ndb5 {[%clk 0:03:05.5]} 7... a6 {[%clk 0:03:02.2]} 8. Be3 {[%clk
0:03:06.1]} 8... Qd8 {[%clk 0:03:00.5]} 9. Nd4 {[%clk 0:03:06.3]} 9... e5 {[%clk
0:02:57.4]} 10. Nf3 {[%clk 0:02:53.4]} 10... b5 {[%clk 0:02:54]} 11. Bb3 {[%clk
0:02:50]} 11... Be7 {[%clk 0:02:44.1]} 12. Nd5 {[%clk 0:02:24.2]} 12... O-O
{[%clk 0:02:41.1]} 13. Nxf6+ {[%clk 0:02:06.1]} 13... Bxf6 {[%clk 0:02:39.1]}
14. Bd5 {[%clk 0:01:56.4]} 14... Qc7 {[%clk 0:02:36.8]} 15. c3 {[%clk
0:01:53.6]} 15... Bg4 {[%clk 0:02:33.8]} 16. h3 {[%clk 0:01:51.4]} 16... Be6
{[%clk 0:02:30.9]} 17. O-O {[%clk 0:01:45.4]} 17... Rac8 {[%clk 0:02:28.8]} 18.
Qd3 {[%clk 0:01:43]} 18... Rfd8 {[%clk 0:02:18.3]} 19. a4 {[%clk 0:01:37.4]}
19... Bxd5 {[%clk 0:02:17.4]} 20. exd5 {[%clk 0:01:29]} 20... Ne7 {[%clk
0:02:18.2]} 21. axb5 {[%clk 0:01:27.8]} 21... axb5 {[%clk 0:02:20.1]} 22. Ra7
{[%clk 0:01:18.4]} 22... Qc4 {[%clk 0:02:20.6]} 23. Rd1 {[%clk 0:01:09.5]} 23...
Qxd3 {[%clk 0:02:18.3]} 0-1

[Event "*** Titled Tuesday 3|2 Blitz (Early)"]
[Site "Chess.com"]
[Date "2016.11.01"]
[Round "5"]
[White "YuriyKrykun"]
[Black "NTBT_DHS"]
[Result "0-1"]
[WhiteElo "2299"]
[BlackElo "2490"]
[TimeControl "180+2"]
[EndTime "12:00:44 PDT"]
[Termination "NTBT_DHS won by resignation"]

1. e4 {[%clk 0:03:00.8]} 1... g6 {[%clk 0:03:01]} 2. d4 {[%clk 0:03:01.5]} 2...
Bg7 {[%clk 0:03:02.4]} 3. Nc3 {[%clk 0:03:03.2]} 3... a6 {[%clk 0:03:03.8]} 4.
f4 {[%clk 0:03:01.7]} 4... d5 {[%clk 0:03:04.3]} 5. e5 {[%clk 0:02:49.8]} 5...
Nh6 {[%clk 0:03:04.6]} 6. Nf3 {[%clk 0:02:47]} 6... O-O {[%clk 0:03:04.4]} 7.
Bd3 {[%clk 0:02:46.1]} 7... Nc6 {[%clk 0:03:03.5]} 8. a3 {[%clk 0:02:44]} 8...
Bg4 {[%clk 0:03:03.8]} 9. Be3 {[%clk 0:02:43]} 9... Nf5 {[%clk 0:03:01.3]} 10.
Bxf5 {[%clk 0:02:44.3]} 10... Bxf5 {[%clk 0:03:01.8]} 11. O-O {[%clk 0:02:45.7]}
11... f6 {[%clk 0:02:54]} 12. Qd2 {[%clk 0:02:43.3]} 12... Qd7 {[%clk
0:02:49.3]} 13. h3 {[%clk 0:02:20.1]} 13... e6 {[%clk 0:02:40.2]} 14. Nh4 {[%clk
0:02:16.5]} 14... Be4 {[%clk 0:02:36.6]} 15. Nxe4 {[%clk 0:02:10]} 15... dxe4
{[%clk 0:02:36.3]} 16. Rad1 {[%clk 0:01:59.5]} 16... Rad8 {[%clk 0:02:21.9]} 17.
c4 {[%clk 0:01:53.8]} 17... Qe7 {[%clk 0:02:21.5]} 18. Qe1 {[%clk 0:01:25.3]}
18... fxe5 {[%clk 0:02:12.4]} 19. fxe5 {[%clk 0:01:23.2]} 19... Rxf1+ {[%clk
0:02:11.6]} 20. Kxf1 {[%clk 0:01:24.1]} 20... g5 {[%clk 0:02:09.8]} 21. d5
{[%clk 0:01:18]} 21... Nxe5 {[%clk 0:02:07.5]} 22. Qg3 {[%clk 0:01:06.5]} 22...
gxh4 {[%clk 0:02:04.7]} 23. Qxh4 {[%clk 0:01:06.5]} 23... Qxh4 {[%clk
0:02:04.4]} 0-1

[Event "*** Titled Tuesday 3|2 Blitz (Early)"]
[Site "Chess.com"]
[Date "2016.11.01"]
[Round "5"]
[White "visa"]
[Black "Andrejkin"]
[Result "1-0"]
[WhiteElo "2132"]
[BlackElo "2149"]
[TimeControl "180+2"]
[EndTime "12:01:49 PDT"]
[Termination "visa won by resignation"]

1. e4 {[%clk 0:03:01.9]} 1... e5 {[%clk 0:02:59.2]} 2. d4 {[%clk 0:03:02.2]}
2... exd4 {[%clk 0:02:59.4]} 3. Qxd4 {[%clk 0:03:02.8]} 3... Nc6 {[%clk
0:02:59.4]} 4. Qe3 {[%clk 0:03:03.8]} 4... Nf6 {[%clk 0:02:51]} 5. Bd2 {[%clk
0:03:04.2]} 5... Be7 {[%clk 0:02:50.8]} 6. Nc3 {[%clk 0:03:04.4]} 6... O-O
{[%clk 0:02:49.3]} 7. O-O-O {[%clk 0:03:05.9]} 7... d5 {[%clk 0:02:50]} 8. exd5
{[%clk 0:03:02.2]} 8... Nxd5 {[%clk 0:02:51.9]} 9. Qf3 {[%clk 0:02:55.7]} 9...
Nxc3 {[%clk 0:02:47]} 10. Bxc3 {[%clk 0:02:54.7]} 10... Bg5+ {[%clk 0:02:48.1]}
11. Kb1 {[%clk 0:02:47]} 11... Qe7 {[%clk 0:02:30.9]} 12. h4 {[%clk 0:02:31.8]}
12... Bh6 {[%clk 0:02:23.4]} 13. g4 {[%clk 0:02:16.8]} 13... f6 {[%clk 0:02:05]}
14. Bc4+ {[%clk 0:01:54.3]} 14... Kh8 {[%clk 0:01:46.3]} 15. Qg3 {[%clk
0:01:32.3]} 15... Rd8 {[%clk 0:01:16.7]} 16. Nf3 {[%clk 0:01:19.7]} 16... Be6
{[%clk 0:00:57.9]} 17. Rde1 {[%clk 0:01:14.8]} 17... Rd6 {[%clk 0:00:47.6]} 18.
g5 {[%clk 0:01:08.2]} 18... fxg5 {[%clk 0:00:39.3]} 19. hxg5 {[%clk 0:01:08.9]}
1-0

[Event "*** Titled Tuesday 3|2 Blitz (Early)"]
[Site "Chess.com"]
[Date "2016.11.01"]
[Round "5"]
[White "AdrianaNikolova"]
[Black "Wolverine_master"]
[Result "0-1"]
[WhiteElo "2226"]
[BlackElo "2060"]
[TimeControl "180+2"]
[EndTime "12:02:12 PDT"]
[Termination "Wolverine_master won by resignation"]

1. e4 {[%clk 0:02:35.6]} 1... d5 {[%clk 0:02:55.3]} 2. exd5 {[%clk 0:02:35]}
2... Qxd5 {[%clk 0:02:57.2]} 3. Nc3 {[%clk 0:02:34.9]} 3... Qd6 {[%clk
0:02:58.2]} 4. Nf3 {[%clk 0:02:34.5]} 4... Nf6 {[%clk 0:02:59.2]} 5. g3 {[%clk
0:02:34.7]} 5... a6 {[%clk 0:02:57]} 6. Bg2 {[%clk 0:02:35.1]} 6... Nc6 {[%clk
0:02:58.5]} 7. O-O {[%clk 0:02:35.6]} 7... Bg4 {[%clk 0:02:56.9]} 8. d3 {[%clk
0:02:35.6]} 8... O-O-O {[%clk 0:02:57.2]} 9. Bf4 {[%clk 0:02:34.9]} 9... e5
{[%clk 0:02:55.6]} 10. Bg5 {[%clk 0:02:28.9]} 10... Nd4 {[%clk 0:02:40.7]} 11.
Ne4 {[%clk 0:02:17.6]} 11... Nxe4 {[%clk 0:01:56.8]} 12. Bxd8 {[%clk 0:02:10.4]}
12... Qxd8 {[%clk 0:01:43.8]} 13. dxe4 {[%clk 0:02:07.4]} 13... Qf6 {[%clk
0:01:44.5]} 14. c3 {[%clk 0:01:33]} 14... Nxf3+ {[%clk 0:01:41.9]} 15. Bxf3
{[%clk 0:01:31]} 15... Bxf3 {[%clk 0:01:42.6]} 16. Qd3 {[%clk 0:01:29.6]} 16...
Bc5 {[%clk 0:01:32.9]} 17. Rfe1 {[%clk 0:01:18.8]} 17... h5 {[%clk 0:01:31.5]}
18. Qf1 {[%clk 0:01:17.6]} 18... h4 {[%clk 0:01:29.6]} 19. Qh3+ {[%clk
0:01:12.7]} 19... Kb8 {[%clk 0:01:20.8]} 20. g4 {[%clk 0:01:11]} 20... Qf4
{[%clk 0:01:12]} 21. b4 {[%clk 0:00:54.9]} 21... Bxg4 {[%clk 0:01:02.1]} 22. Qd3
{[%clk 0:00:54.4]} 22... Qxf2+ {[%clk 0:00:57]} 23. Kh1 {[%clk 0:00:52.8]} 23...
Bf3+ {[%clk 0:00:57.2]} 0-1

[Event "*** Titled Tuesday 3|2 Blitz (Early)"]
[Site "Chess.com"]
[Date "2016.11.01"]
[Round "5"]
[White "Salem-AR"]
[Black "Taabling"]
[Result "1/2-1/2"]
[WhiteElo "2681"]
[BlackElo "2237"]
[TimeControl "180+2"]
[EndTime "12:02:17 PDT"]
[Termination "Game drawn by agreement"]

1. d4 {[%clk 0:03:02]} 1... g6 {[%clk 0:02:57.7]} 2. e4 {[%clk 0:03:02.5]} 2...
Bg7 {[%clk 0:02:58.6]} 3. Nc3 {[%clk 0:03:04.3]} 3... d6 {[%clk 0:02:59.6]} 4.
f4 {[%clk 0:03:06]} 4... Nf6 {[%clk 0:02:59.2]} 5. Nf3 {[%clk 0:03:07.7]} 5...
c5 {[%clk 0:02:59.5]} 6. Bb5+ {[%clk 0:03:05.2]} 6... Bd7 {[%clk 0:02:58]} 7. e5
{[%clk 0:03:05]} 7... Ng4 {[%clk 0:02:58.3]} 8. Bxd7+ {[%clk 0:03:04.1]} 8...
Nxd7 {[%clk 0:02:55.6]} 9. d5 {[%clk 0:02:52.1]} 9... dxe5 {[%clk 0:02:51.3]}
10. h3 {[%clk 0:02:53.3]} 10... Nh6 {[%clk 0:02:48.2]} 11. fxe5 {[%clk
0:02:53.8]} 11... Nf5 {[%clk 0:02:45.8]} 12. Bf4 {[%clk 0:02:55]} 12... Qb6
{[%clk 0:02:31.3]} 13. Qd2 {[%clk 0:02:56.1]} 13... Nd4 {[%clk 0:02:28.2]} 14.
Nxd4 {[%clk 0:02:24.5]} 14... cxd4 {[%clk 0:02:30.1]} 15. Na4 {[%clk 0:02:26.1]}
15... Qb5 {[%clk 0:02:25.3]} 16. Qxd4 {[%clk 0:02:26.2]} 16... O-O {[%clk
0:02:07.8]} 17. Nc3 {[%clk 0:02:26.8]} 17... Qxb2 {[%clk 0:02:07.3]} 18. Rb1
{[%clk 0:02:26.5]} 18... Qxc2 {[%clk 0:02:07.7]} 19. O-O {[%clk 0:02:25.7]}
19... b6 {[%clk 0:02:01]} 20. Rf2 {[%clk 0:02:20]} 20... Qf5 {[%clk 0:02:00.7]}
21. Re1 {[%clk 0:02:15.8]} 21... Rac8 {[%clk 0:01:54.7]} 22. g4 {[%clk
0:02:15.2]} 22... Nxe5 {[%clk 0:01:33.3]} 23. Bxe5 {[%clk 0:02:15]} 23... Bxe5
{[%clk 0:01:28]} 24. Rxe5 {[%clk 0:02:16.9]} 24... Qd7 {[%clk 0:01:23.6]} 25.
Rfe2 {[%clk 0:02:11.7]} 25... Rfe8 {[%clk 0:01:14.9]} 26. Ne4 {[%clk 0:02:10.7]}
26... Qb5 {[%clk 0:00:56.9]} 27. Nf6+ {[%clk 0:02:08.4]} 27... exf6 {[%clk
0:00:56.6]} 28. Rxe8+ {[%clk 0:02:05.2]} 28... Rxe8 {[%clk 0:00:58.5]} 29. Rxe8+
{[%clk 0:02:04.4]} 29... Qxe8 {[%clk 0:00:59.3]} 30. d6 {[%clk 0:02:04.1]} 30...
Qe1+ {[%clk 0:00:35.6]} 31. Kg2 {[%clk 0:02:04.6]} 31... Qe2+ {[%clk 0:00:36]}
32. Kg1 {[%clk 0:02:06.1]} 1/2-1/2